fUSD/lending_fUSD_20250606
["ID","MTS","AMOUNT","RATE_DAILY","PERIOD"]
[364812864,1749249060945,-1133.55,0.00028219,5]
[364812865,1749249060954,-560.8,0.00028219,5]
[364812866,1749249060964,-9251.477147,0.00028219,7]
[364812867,1749249060974,-634.45,0.00028219,5]
[364812868,1749249060984,-2020.92,0.00028219,5]
[364812869,1749249060995,-955.86,0.00028219,5]
[364812870,1749249061005,-561.21,0.00028219,5]
[364812871,1749249061014,-480.0,0.00028219,5]
[364812872,1749249061024,-9251.477147,0.00028219,7]
[364812873,1749249061033,-2484.76,0.00028219,5]
[364812874,1749249061043,-751.76,0.00028219,5]
[364812875,1749249061053,-1476.09,0.00028219,5]
[364812876,1749249061062,-767.245013,0.00028219,5]
[364812877,1749249061072,-1062.3,0.00028219,5]
[364812878,1749249061081,-684.25,0.00028219,5]
[364812879,1749249061091,-1006.98,0.00028219,5]
[364812880,1749249061100,-644.85,0.00028219,5]
[364812881,1749249061109,-480.0,0.00028219,5]
[364812882,1749249061119,-747.15,0.00028219,5]
[364812883,1749249061129,-480.0,0.00028219,5]
[364812884,1749249061138,-2561.95,0.00028219,5]
[364812885,1749249061148,-480.0,0.00028219,5]
[364812886,1749249061158,-1671.25,0.00028219,5]
[364812887,1749249061168,-9406.81,0.00028219,5]
[364812888,1749249061177,-480.0,0.00028219,5]
[364812889,1749249061187,-1049.08,0.00028219,5]
[364812890,1749249061197,-480.0,0.00028219,5]
[364812891,1749249061207,-1149.34,0.00028219,5]
[364812892,1749249061217,-480.0,0.00028219,5]
[364812893,1749249061227,-4644.09,0.00028219,5]
[364812894,1749249061237,-480.0,0.00028219,5]
[364812895,1749249061247,-480.0,0.00028219,5]
[364812896,1749249061256,-903.91,0.00028219,5]
[364812897,1749249061267,-1214.33,0.00028219,5]
[364812898,1749249061277,-1366.78,0.00028219,5]
[364812899,1749249061287,-498.51,0.00028219,5]
[364812900,1749249061298,-782.13,0.00028219,5]
[364812901,1749249061309,-480.0,0.00028219,5]
[364812902,1749249061319,-919.51,0.00028219,5]
[364812903,1749249061329,-1040.43,0.00028219,5]
[364812904,1749249061338,-1015.0,0.00028219,5]
[364812905,1749249061348,-1599.2,0.00028219,5]
[364812906,1749249061358,-480.0,0.00028219,5]
[364812907,1749249061368,-151.0,0.00028219,7]
[364812908,1749249061377,-480.0,0.00028219,5]
[364812909,1749249061388,-480.0,0.00028219,5]
[364812910,1749249061399,-3545.61,0.00028219,5]
[364812911,1749249061408,-480.0,0.00028219,5]
[364812912,1749249061418,-1468.39,0.00028219,5]
[364812913,1749249061427,-619.5,0.00028219,5]
[364812914,1749249061436,-978.02,0.00028219,5]
[364812915,1749249061445,-480.0,0.00028219,5]
[364812916,1749249061455,-576.36,0.00028219,5]
[364812917,1749249061464,-480.0,0.00028219,5]
[364812918,1749249061474,-1451.75,0.00028219,5]
[364812919,1749249061483,-480.0,0.00028219,5]
[364812920,1749249061492,-1249.34,0.00028219,5]
[364812921,1749249061502,-1324.83,0.00028219,5]
[364812922,1749249061511,-2825.94,0.00028219,5]
[364812923,1749249061521,-151.0,0.00028219,7]
[364812924,1749249061534,-519.06,0.00028219,5]
[364812925,1749249061543,-480.0,0.00028219,5]
[364812926,1749249061557,-876.83,0.00028219,5]
[364812927,1749249061566,-480.0,0.00028219,5]
[364812928,1749249061576,-9134.21,0.00028219,5]
[364812929,1749249061587,-480.0,0.00028219,5]
[364812930,1749249061602,-530.99,0.00028219,5]
[364812931,1749249061617,-13397.65,0.00028219,5]
[364812932,1749249061629,-753.87,0.00028219,5]
[364812933,1749249061641,-480.0,0.00028219,5]
[364812934,1749249061655,-494.07,0.00028219,5]
[364812935,1749249061669,-489.37,0.00028219,5]
[364812936,1749249061683,-480.0,0.00028219,5]
[364812937,1749249061697,-1086.28,0.00028219,5]
[364812938,1749249061710,-550.68,0.00028219,5]
[364812939,1749249061723,-480.0,0.00028219,5]
[364812940,1749249061734,-5872.23,0.00028219,5]
[364812941,1749249061747,-1297.03,0.00028219,5]
[364812942,1749249061761,-480.0,0.00028219,5]
[364812943,1749249061774,-1071.02,0.00028219,5]
[364812944,1749249061787,-1434.25,0.00028219,5]
[364812945,1749249061801,-805.27,0.00028219,5]
[364812946,1749249061814,-480.0,0.00028219,5]
[364812947,1749249061827,-1698.93,0.00028219,5]
[364812948,1749249061842,-480.0,0.00028219,5]
[364812949,1749249061855,-10035.0,0.00028219,5]
[364812950,1749249061869,-480.0,0.00028219,5]
[364812951,1749249061884,-1364.04,0.00028219,5]
[364812952,1749249061897,-2768.53,0.00028219,5]
[364812953,1749249061910,-3370.61,0.00028219,5]
[364812954,1749249061927,-601.16,0.00028219,5]
[364812955,1749249061940,-480.0,0.00028219,5]
[364812956,1749249061954,-1472.37,0.00028219,5]
[364812957,1749249061965,-3042.72,0.00028219,5]
[364812958,1749249061976,-480.0,0.00028219,5]
[364812959,1749249061989,-480.0,0.00028219,5]
[364812960,1749249062005,-489.54,0.00028219,5]
[364812961,1749249062017,-480.0,0.00028219,5]
[364812962,1749249062028,-517.23,0.00028219,5]
[364812963,1749249062038,-1392.9,0.00028219,5]
[364812964,1749249062050,-793.54,0.00028219,5]
[364812965,1749249062065,-480.0,0.00028219,5]
[364812966,1749249062078,-480.0,0.00028219,5]
[364812967,1749249062090,-480.0,0.00028219,5]
[364812968,1749249062101,-658.0,0.00028219,5]
[364812969,1749249062115,-480.0,0.00028219,5]
[364812970,1749249062127,-549.97,0.00028219,5]
[364812971,1749249062140,-480.0,0.00028219,5]
[364812972,1749249062152,-2962.92,0.00028219,5]
[364812973,1749249062164,-682.01,0.00028219,5]
[364812974,1749249062178,-1377.03,0.00028219,5]
[364812975,1749249062192,-1477.44,0.00028219,5]
[364812976,1749249062206,-480.0,0.00028219,5]
[364812977,1749249062218,-1388.75,0.00028219,5]
[364812978,1749249062231,-532.97,0.00028219,5]
[364812979,1749249062244,-832.53,0.00028219,5]
[364812980,1749249062257,-480.0,0.00028219,5]
[364812981,1749249062271,-480.0,0.00028219,5]
[364812982,1749249062284,-1207.13,0.00028219,5]
[364812983,1749249062296,-4118.2,0.00028219,5]
[364812984,1749249062308,-956.85,0.00028219,5]
[364812985,1749249062320,-151.0,0.00028219,7]
[364812986,1749249062333,-480.0,0.00028219,5]
[364812987,1749249062346,-2445.82,0.00028219,5]
[364812988,1749249062358,-151.0,0.00028219,7]
[364812989,1749249062370,-1102.03,0.00028219,5]
[364812990,1749249062383,-1097.1,0.00028219,5]
[364812991,1749249062396,-480.0,0.00028219,5]
[364812992,1749249062408,-3539.2,0.00028219,5]
[364812993,1749249062421,-480.0,0.00028219,5]
[364812994,1749249062434,-1807.67,0.00028219,5]
[364812995,1749249062447,-804.07,0.00028219,5]
[364812996,1749249062460,-2612.22,0.00028219,5]
[364812997,1749249062473,-889.55,0.00028219,5]
[364812998,1749249062485,-480.0,0.00028219,5]
[364812999,1749249062498,-480.0,0.00028219,5]
[364813000,1749249062510,-480.7,0.00028219,5]
[364813001,1749249062522,-480.0,0.00028219,5]
[364813002,1749249062537,-545.98,0.00028219,5]
[364813003,1749249062549,-2341.98,0.00028219,5]
[364813004,1749249062562,-569.07,0.00028219,5]
[364813005,1749249062575,-4003.64,0.00028219,5]
[364813006,1749249062586,-5914.05,0.00028219,5]
[364813007,1749249062597,-480.0,0.00028219,2]
[364813008,1749249062610,-1337.49,0.00028219,5]
[364813009,1749249062622,-829.99,0.00028219,5]
[364813010,1749249062633,-480.0,0.00028219,5]
[364813011,1749249062646,-1525.61,0.00028219,5]
[364813012,1749249062658,-770.94,0.00028219,5]
[364813013,1749249062670,-480.0,0.00028219,2]
[364813014,1749249062682,-794.19,0.00028219,5]
[364813015,1749249062695,-2791.74,0.00028219,5]
[364813016,1749249062707,-850.62,0.00028219,5]
[364813017,1749249062719,-1521.49,0.00028219,5]
[364813018,1749249062731,-620.14,0.00028219,5]
[364813019,1749249062744,-1313.26,0.00028219,5]
[364813020,1749249062755,-480.0,0.00028219,5]
[364813021,1749249062767,-812.48,0.00028219,5]
[364813022,1749249062778,-211.989003,0.00028219,7]
[364813023,1749249062791,-682.0,0.00028219,5]
[364813024,1749249062804,-555.67,0.00028219,5]
[364813025,1749249062815,-480.0,0.00028219,5]
[364813026,1749249062828,-1027.0,0.00028219,5]
[364813027,1749249062840,-879.45,0.00028219,5]
[364813028,1749249062852,-151.0,0.00028219,7]
[364813029,1749249062869,-1454.01,0.00028219,5]
[364813030,1749249062881,-211.989003,0.00028219,7]
[364813031,1749249062892,-801.0,0.00028225,2]
[364813032,1749249062904,-636.0,0.00028225,2]
[364813033,1749249062916,-557.0,0.00028225,2]
[364813034,1749249062929,-1999.0,0.00028225,2]
[364813035,1749249062941,-589.0,0.00028225,2]
[364813036,1749249062953,-1274.0,0.00028225,2]
[364813037,1749249062966,-926.0,0.00028225,2]
[364813038,1749249062979,-1254.0,0.00028225,2]
[364813039,1749249062991,-1158.0,0.00028225,2]
[364813040,1749249063004,-4081.0,0.00028225,2]
[364813041,1749249063016,-944.0,0.00028225,2]
[364813042,1749249063029,-155.0,0.00028225,2]
[364813043,1749249063042,-1164.0,0.00028225,2]
[364813044,1749249063054,-4000.0,0.00028242,4]
[364813045,1749249063067,-169.64,0.00028265,2]
[364813046,1749249063081,-1000.0,0.00028267,2]
[364813047,1749249063094,-958.11686447,0.00028274,30]
[364813048,1749249063106,-172.97272557,0.00028275,9]
[364813049,1749249063119,-150.0,0.00028283,2]
[364813050,1749249063132,-867.11690754,0.000283,2]
[364813051,1749249063144,-215.0738,0.00028302,2]
[364813052,1749249063157,-150.0,0.0002831,2]
[364813053,1749249063169,-4422.1419121,0.00028326,2]
[364813054,1749249063181,-219138.7188731,0.00028326,2]
[364813055,1749249063193,-161.01590369,0.00028335,2]
[364813056,1749249063206,-150.0,0.00028342,2]
[364813057,1749249063219,-25469.9467154,0.00028345,2]
[364813058,1749249063231,-2508.0221543,0.00028345,2]
[364813059,1749249063244,-315.0202568,0.00028345,2]
[364813060,1749249063255,-20481.7582499,0.00028345,2]
[364813061,1749249063268,-150.0,0.00028353,2]
[364813062,1749249063280,-618.62382848,0.00028363,2]
[364813063,1749249063292,-14801.0195674,0.00028364,2]
[364813064,1749249063304,-8424.6510041,0.00028364,2]
[364813065,1749249063315,-42498.2795896,0.00028364,2]
[364813066,1749249063327,-14878.9592786,0.00028364,2]
[364813067,1749249063339,-150.0,0.00028365,2]
[364813068,1749249063351,-500.0,0.0002837,2]
[364813069,1749249063362,-303.43,0.00028373,2]
[364813070,1749249063374,-305.89,0.00028373,2]
[364813071,1749249063387,-151.0,0.00028383,7]
[364813072,1749249063398,-480.0,0.00028383,5]
[364813073,1749249063410,-480.0,0.00028383,5]
[364813074,1749249063421,-480.0,0.00028383,5]
[364813075,1749249063433,-480.0,0.00028383,5]
[364813076,1749249063445,-678.27,0.00028383,5]
[364813077,1749249063456,-480.0,0.00028383,5]
[364813078,1749249063468,-480.0,0.00028383,5]
[364813079,1749249063479,-480.0,0.00028383,5]
[364813080,1749249063491,-512.9,0.00028383,5]
[364813081,1749249063503,-480.0,0.00028383,5]
[364813082,1749249063514,-480.0,0.00028383,5]
[364813083,1749249063526,-480.0,0.00028383,5]
[364813084,1749249063541,-480.0,0.00028383,5]
[364813085,1749249063554,-480.0,0.00028383,5]
[364813086,1749249063566,-529.84,0.00028383,5]
[364813087,1749249063577,-480.0,0.00028383,5]
[364813088,1749249063589,-480.0,0.00028383,5]
[364813089,1749249063601,-480.0,0.00028383,5]
[364813090,1749249063612,-606.23,0.00028383,5]
[364813091,1749249063623,-480.0,0.00028383,5]
[364813092,1749249063635,-677.96,0.00028383,5]
[364813093,1749249063646,-480.0,0.00028383,5]
[364813094,1749249063658,-480.0,0.00028383,5]
[364813095,1749249063670,-480.0,0.00028383,5]
[364813096,1749249063682,-830.71,0.00028383,5]
[364813097,1749249063694,-480.0,0.00028383,5]
[364813098,1749249063706,-480.0,0.00028383,5]
[364813099,1749249063719,-710.66,0.00028383,5]
[364813100,1749249063731,-480.0,0.00028383,5]
[364813101,1749249063744,-480.0,0.00028383,5]
[364813102,1749249063756,-480.0,0.00028383,5]
[364813103,1749249063768,-559.5,0.00028383,5]
[364813104,1749249063779,-480.0,0.00028383,5]
[364813105,1749249063791,-480.0,0.00028383,5]
[364813106,1749249063802,-480.0,0.00028383,5]
[364813107,1749249063814,-480.0,0.00028383,5]
[364813108,1749249063826,-549.49,0.00028383,5]
[364813109,1749249063838,-1076.21,0.00028383,5]
[364813110,1749249063849,-480.0,0.00028383,5]
[364813111,1749249063861,-480.0,0.00028383,5]
[364813112,1749249063873,-480.0,0.00028383,5]
[364813113,1749249063884,-527.39,0.00028383,5]
[364813114,1749249063895,-480.0,0.00028383,5]
[364813115,1749249063907,-480.0,0.00028383,5]
[364813116,1749249063918,-555.9,0.00028383,5]
[364813117,1749249063929,-655.43,0.00028383,5]
[364813118,1749249063940,-480.0,0.00028383,5]
[364813119,1749249063951,-1040.33,0.00028383,5]
[364813120,1749249063963,-480.0,0.00028383,5]
[364813121,1749249063975,-480.0,0.00028383,5]
[364813122,1749249063987,-480.0,0.00028383,5]
[364813123,1749249063998,-480.0,0.00028383,5]
[364813124,1749249064009,-480.0,0.00028383,5]
[364813125,1749249064021,-556.96,0.00028383,5]
[364813126,1749249064034,-499.5,0.00028383,5]
[364813127,1749249064045,-539.01,0.00028383,5]
[364813128,1749249064057,-232.02883511,0.00028383,5]
[364813129,1749249064068,-913.42,0.00028383,5]
[364813130,1749249064080,-573.44,0.00028383,5]
[364813131,1749249064092,-480.0,0.00028383,5]
[364813132,1749249064104,-602.23,0.00028383,5]
[364813133,1749249064116,-553.04,0.00028383,5]
[364813134,1749249064128,-567.5,0.00028383,5]
[364813135,1749249064140,-480.0,0.00028383,5]
[364813136,1749249064151,-480.0,0.00028383,5]
[364813137,1749249064162,-480.0,0.00028383,5]
[364813138,1749249064174,-502.06,0.00028383,5]
[364813139,1749249064185,-480.0,0.00028383,5]
[364813140,1749249064198,-480.0,0.00028383,5]
[364813141,1749249064210,-846.78,0.00028383,5]
[364813142,1749249064222,-480.0,0.00028383,5]
[364813143,1749249064235,-516.88,0.00028383,5]
[364813144,1749249064246,-703.63,0.00028383,5]
[364813145,1749249064257,-480.0,0.00028383,5]
[364813146,1749249064269,-491.95,0.00028383,5]
[364813147,1749249064280,-1302.12,0.00028383,5]
[364813148,1749249064289,-480.0,0.00028383,5]
[364813149,1749249064299,-480.0,0.00028383,5]
[364813150,1749249064308,-480.0,0.00028383,5]
[364813151,1749249064317,-480.0,0.00028383,5]
[364813152,1749249064326,-503.98,0.00028383,5]
[364813153,1749249064603,-480.0,0.00028383,5]
[364813154,1749249064732,-480.0,0.00028383,5]
[364813155,1749249064752,-41603.54,0.00028383,5]
[364813156,1749249064763,-1007.79,0.00028383,5]
[364813157,1749249064775,-2220.64,0.00028383,5]
[364813158,1749249064786,-1000.0,0.00028383,2]
[364813159,1749249064795,-480.0,0.00028383,5]
[364813160,1749249064804,-480.0,0.00028383,5]
[364813161,1749249064815,-1128.96,0.00028383,5]
[364813162,1749249064824,-5394.96,0.00028383,5]
[364813163,1749249064834,-650.68,0.00028383,5]
[364813164,1749249064845,-222.1,0.00028383,5]
[364813165,1749249064854,-480.0,0.00028383,5]
[364813166,1749249064864,-1252.94,0.00028383,5]
[364813167,1749249064873,-839.78,0.00028383,5]
[364813168,1749249064882,-597.47,0.00028383,5]
[364813169,1749249064892,-2287.47,0.00028383,5]
[364813170,1749249064902,-480.0,0.00028383,5]
[364813171,1749249064912,-480.0,0.00028383,5]
[364813172,1749249064921,-776.7,0.00028383,5]
[364813173,1749249064930,-1339.2,0.00028383,5]
[364813174,1749249064939,-1133.55,0.00028383,5]
[364813175,1749249064948,-560.8,0.00028383,5]
[364813176,1749249064959,-634.45,0.00028383,5]
[364813177,1749249064968,-2020.92,0.00028383,5]
[364813178,1749249064978,-955.86,0.00028383,5]
[364813179,1749249064988,-561.21,0.00028383,5]
[364813180,1749249064998,-480.0,0.00028383,5]
[364813181,1749249065007,-2484.76,0.00028383,5]
[364813182,1749249065016,-751.76,0.00028383,5]
[364813183,1749249065026,-1476.09,0.00028383,5]
[364813184,1749249065035,-1062.3,0.00028383,5]
[364813185,1749249065044,-684.25,0.00028383,5]
[364813186,1749249065053,-1006.98,0.00028383,5]
[364813187,1749249065063,-644.85,0.00028383,5]
[364813188,1749249065072,-747.15,0.00028383,5]
[364813189,1749249065081,-480.0,0.00028383,5]
[364813190,1749249065090,-2561.95,0.00028383,5]
[364813191,1749249065100,-480.0,0.00028383,5]
[364813192,1749249065109,-1671.25,0.00028383,5]
[364813193,1749249065119,-9406.81,0.00028383,5]
[364813194,1749249065128,-480.0,0.00028383,5]
[364813195,1749249065137,-1049.08,0.00028383,5]
[364813196,1749249065146,-480.0,0.00028383,5]
[364813197,1749249065155,-1149.34,0.00028383,5]
[364813198,1749249065164,-480.0,0.00028383,5]
[364813199,1749249065174,-4644.09,0.00028383,5]
[364813200,1749249065183,-480.0,0.00028383,5]
[364813201,1749249065193,-903.91,0.00028383,5]
[364813202,1749249065202,-1214.33,0.00028383,5]
[364813203,1749249065211,-1366.78,0.00028383,5]
[364813204,1749249065221,-498.51,0.00028383,5]
[364813205,1749249065231,-782.13,0.00028383,5]
[364813206,1749249065241,-919.51,0.00028383,5]
[364813207,1749249065251,-1040.43,0.00028383,5]
[364813208,1749249065260,-1015.0,0.00028383,5]
[364813209,1749249065269,-1599.2,0.00028383,5]
[364813210,1749249065279,-480.0,0.00028383,5]
[364813211,1749249065288,-480.0,0.00028383,5]
[364813212,1749249065298,-480.0,0.00028383,5]
[364813213,1749249065307,-3545.61,0.00028383,5]
[364813214,1749249065317,-480.0,0.00028383,5]
[364813215,1749249065327,-1468.39,0.00028383,5]
[364813216,1749249065336,-978.02,0.00028383,5]
[364813217,1749249065345,-619.5,0.00028383,5]
[364813218,1749249065354,-480.0,0.00028383,5]
[364813219,1749249065364,-576.36,0.00028383,5]
[364813220,1749249065373,-480.0,0.00028383,5]
[364813221,1749249065383,-1451.75,0.00028383,5]
[364813222,1749249065392,-480.0,0.00028383,5]
[364813223,1749249065401,-1249.34,0.00028383,5]
[364813224,1749249065410,-1324.83,0.00028383,5]
[364813225,1749249065420,-2825.94,0.00028383,5]
[364813226,1749249065429,-519.06,0.00028383,5]
[364813227,1749249065439,-480.0,0.00028383,5]
[364813228,1749249065448,-876.83,0.00028383,5]
[364813229,1749249065458,-480.0,0.00028383,5]
[364813230,1749249065467,-9134.21,0.00028383,5]
[364813231,1749249065476,-480.0,0.00028383,5]
[364813232,1749249065485,-530.99,0.00028383,5]
[364813233,1749249065494,-13397.65,0.00028383,5]
[364813234,1749249065504,-753.87,0.00028383,5]
[364813235,1749249065514,-480.0,0.00028383,5]
[364813236,1749249065522,-494.07,0.00028383,5]
[364813237,1749249065535,-489.37,0.00028383,5]
[364813238,1749249065545,-480.0,0.00028383,5]
[364813239,1749249065554,-1086.28,0.00028383,5]
[364813240,1749249065563,-550.68,0.00028383,5]
[364813241,1749249065572,-480.0,0.00028383,5]
[364813242,1749249065582,-5872.23,0.00028383,5]
[364813243,1749249065591,-1297.03,0.00028383,5]
[364813244,1749249065600,-480.0,0.00028383,5]
[364813245,1749249065610,-1071.02,0.00028383,5]
[364813246,1749249065619,-1434.25,0.00028383,5]
[364813247,1749249065629,-805.27,0.00028383,5]
[364813248,1749249065638,-480.0,0.00028383,5]
[364813249,1749249065648,-1698.93,0.00028383,5]
[364813250,1749249065657,-480.0,0.00028383,5]
[364813251,1749249065667,-480.0,0.00028383,5]
[364813252,1749249065677,-10035.0,0.00028383,5]
[364813253,1749249065687,-1364.04,0.00028383,5]
[364813254,1749249065696,-2768.53,0.00028383,5]
[364813255,1749249065705,-601.16,0.00028383,5]
[364813256,1749249065715,-618.77537129,0.00028383,5]
[364813257,1749249065724,-1472.37,0.00028383,5]
[364813258,1749249065733,-3042.72,0.00028383,5]
[364813259,1749249065742,-3370.61,0.00028383,5]
[364813260,1749249065752,-480.0,0.00028383,5]
[364813261,1749249065761,-480.0,0.00028383,5]
[364813262,1749249065771,-489.54,0.00028383,5]
[364813263,1749249065781,-480.0,0.00028383,5]
[364813264,1749249065791,-517.23,0.00028383,5]
[364813265,1749249065800,-1392.9,0.00028383,5]
[364813266,1749249065810,-793.54,0.00028383,5]
[364813267,1749249065819,-480.0,0.00028383,5]
[364813268,1749249065829,-480.0,0.00028383,5]
[364813269,1749249065839,-480.0,0.00028383,5]
[364813270,1749249065848,-658.0,0.00028383,5]
[364813271,1749249065858,-480.0,0.00028383,5]
[364813272,1749249065868,-549.97,0.00028383,5]
[364813273,1749249065877,-612.41509581,0.00028383,5]
[364813274,1749249065886,-2962.92,0.00028383,5]
[364813275,1749249065896,-682.01,0.00028383,5]
[364813276,1749249065906,-1377.03,0.00028383,5]
[364813277,1749249065916,-1477.44,0.00028383,5]
[364813278,1749249065926,-321.24603856,0.00028383,5]
[364813279,1749249065936,-1388.75,0.00028383,5]
[364813280,1749249065946,-532.97,0.00028383,5]
[364813281,1749249065956,-832.53,0.00028383,5]
[364813282,1749249065966,-480.0,0.00028383,5]
[364813283,1749249065976,-480.0,0.00028383,5]
[364813284,1749249065985,-1207.13,0.00028383,5]
[364813285,1749249065995,-4118.2,0.00028383,5]
[364813286,1749249066005,-956.85,0.00028383,5]
[364813287,1749249066015,-480.0,0.00028383,5]
[364813288,1749249066024,-2445.82,0.00028383,5]
[364813289,1749249066034,-1102.03,0.00028383,5]
[364813290,1749249066044,-1097.1,0.00028383,5]
[364813291,1749249066054,-480.0,0.00028383,5]
[364813292,1749249066064,-3539.2,0.00028383,5]
[364813293,1749249066074,-480.0,0.00028383,5]
[364813294,1749249066084,-1807.67,0.00028383,5]
[364813295,1749249066094,-804.07,0.00028383,5]
[364813296,1749249066103,-2612.22,0.00028383,5]
[364813297,1749249066112,-889.55,0.00028383,5]
[364813298,1749249066122,-480.0,0.00028383,5]
[364813299,1749249066131,-480.7,0.00028383,5]
[364813300,1749249066141,-480.0,0.00028383,5]
[364813301,1749249066150,-480.0,0.00028383,5]
[364813302,1749249066159,-545.98,0.00028383,5]
[364813303,1749249066169,-2341.98,0.00028383,5]
[364813304,1749249066178,-569.07,0.00028383,5]
[364813305,1749249066188,-4003.64,0.00028383,5]
[364813306,1749249066198,-5914.05,0.00028383,5]
[364813307,1749249066208,-480.0,0.00028383,2]
[364813308,1749249066218,-1337.49,0.00028383,5]
[364813309,1749249066227,-829.99,0.00028383,5]
[364813310,1749249066236,-480.0,0.00028383,5]
[364813311,1749249066246,-1525.61,0.00028383,5]
[364813312,1749249066255,-770.94,0.00028383,5]
[364813313,1749249066265,-480.0,0.00028383,2]
[364813314,1749249066275,-794.19,0.00028383,5]
[364813315,1749249066284,-2791.74,0.00028383,5]
[364813316,1749249066293,-850.62,0.00028383,5]
[364813317,1749249066302,-1521.49,0.00028383,5]
[364813318,1749249066312,-620.14,0.00028383,5]
[364813319,1749249066321,-1313.26,0.00028383,5]
[364813320,1749249066330,-812.48,0.00028383,5]
[364813321,1749249066340,-682.0,0.00028383,5]
[364813322,1749249066350,-555.67,0.00028383,5]
[364813323,1749249066359,-480.0,0.00028383,5]
[364813324,1749249066368,-1027.0,0.00028383,5]
[364813325,1749249066377,-879.45,0.00028383,5]
[364813326,1749249066387,-1454.01,0.00028383,5]
[364813327,1749249066396,-958.11686447,0.00028384,30]
[364813328,1749249066406,-5503.87396,0.000284,2]
[364813329,1749249066415,-150.0,0.00028406,2]
[364813330,1749249066425,-417.50445255,0.00028411,2]
[364813331,1749249066435,-150.0,0.00028413,2]
[364813332,1749249066444,-314.33,0.00028421,2]
[364813333,1749249066453,-454.22,0.00028421,2]
[364813334,1749249066463,-460.84,0.00028421,2]
[364813335,1749249066473,-150.0,0.00028426,2]
[364813336,1749249066483,-150.0,0.0002843,2]
[364813337,1749249066492,-150.0,0.00028433,2]
[364813338,1749249066503,-191.377,0.00028433,2]
[364813339,1749249066512,-185.194,0.00028433,2]
[364813340,1749249066522,-222.876,0.00028433,2]
[364813341,1749249066535,-150.0,0.00028433,2]
[364813342,1749249066545,-150.281,0.00028437,2]
[364813343,1749249066554,-227.626,0.00028437,2]
[364813344,1749249066563,-150.096,0.00028437,2]
[364813345,1749249066573,-156.819,0.00028437,2]
[364813346,1749249066583,-150.0,0.00028437,2]
[364813347,1749249066592,-150.079,0.00028437,2]
[364813348,1749249066603,-150.205,0.00028437,2]
[364813349,1749249066614,-156.587,0.0002844,2]
[364813350,1749249066624,-150.0,0.00028448,2]
[364813351,1749249066634,-500.0,0.0002847,2]
[364813352,1749249066643,-150.0,0.00028475,2]
[364813353,1749249066652,-150.0,0.00028478,2]
[364813354,1749249066662,-150.0,0.00028484,2]
[364813355,1749249066671,-958.11686447,0.00028493,30]
[364813356,1749249066681,-1000.0,0.00028495,2]
[364813357,1749249066690,-2000.0,0.000285,2]
[364813358,1749249066700,-150.0,0.000285,2]
[364813359,1749249066710,-150.0,0.00028523,2]
[364813360,1749249066720,-152.0,0.0002853,5]
[364813361,1749249066730,-1000.0,0.00028531,2]
[364813362,1749249066742,-150.0,0.00028534,2]
[364813363,1749249066751,-655.51698818,0.00028537,2]